bitfinex-derivatives/quotes_BTCF0:USTF0_20241210
["timestamp","ask_amount","ask_price","bid_price","bid_amount"]
[1733852083116,0.414488,94973.0,94952.0,0.3608]
[1733852083117,0.00106,94973.0,94952.0,0.3608]
[1733852083318,0.09356639,94966.0,94957.0,0.052636]
[1733852083518,0.052634,94962.0,94955.0,0.18798148]
[1733852083722,0.052637,94957.0,94954.0,0.18798148]
[1733852083923,0.3608,94969.0,94948.0,0.3608]
[1733852083924,0.052638,94955.0,94952.0,0.18798148]
[1733852084125,0.052639,94954.0,94952.0,0.18798148]
[1733852084323,0.052639,94952.0,94948.0,0.20072001]
[1733852084931,0.052641,94950.0,94948.0,0.01273853]
[1733852085122,0.45436639,94951.0,94944.0,0.052643]
[1733852085324,0.45436639,94951.0,94940.0,0.00012236]
[1733852085325,0.09356639,94949.0,94940.0,0.00012236]
[1733852085527,0.052643,94946.0,94942.0,0.052645]
[1733852085824,0.052643,94945.0,94942.0,0.052645]
[1733852086526,0.45436639,94951.0,94940.0,0.00012236]
[1733852086828,0.45436639,94951.0,94940.0,0.00712236]
[1733852086829,0.052645,94941.0,94940.0,0.00712236]
[1733852087219,0.05276243,94941.0,94940.0,0.00712236]
[1733852087417,0.05276243,94941.0,94940.0,0.01112236]
[1733852087418,0.05282243,94941.0,94940.0,0.01112236]
[1733852087819,0.41362243,94941.0,94940.0,0.01112236]
[1733852088527,4.3e-07,94941.0,94940.0,0.052646]
[1733852088925,0.09361442,94975.0,94952.0,0.052639]
[1733852089221,0.53643767,94970.0,94952.0,0.413559]
[1733852089419,0.3608,94970.0,94952.0,0.413559]
[1733852089631,0.00010222,94955.0,94952.0,0.42589044]
[1733852090627,0.00206,94953.0,94952.0,0.6144529]
[1733852090827,0.00206,94953.0,94952.0,0.78669044]
[1733852091324,0.00306,94953.0,94952.0,0.79369044]
[1733852092026,0.415499,94953.0,94952.0,0.00023821]
[1733852092228,0.415499,94953.0,94952.0,0.004]
[1733852092229,0.716499,94953.0,94952.0,0.004]
[1733852092430,0.052651,94931.0,94921.0,0.18857654]
[1733852092629,0.66386,94953.0,94909.0,0.3608]
[1733852092630,0.05265,94933.0,94909.0,0.3608]
[1733852092829,0.05265,94933.0,94915.0,0.05266]
[1733852092830,0.052657,94921.0,94915.0,0.05266]
[1733852093132,0.2709024,94931.0,94915.0,0.05266]
[1733852093133,0.052657,94920.0,94915.0,0.05266]
[1733852093633,6e-05,94916.0,94915.0,0.05266]
[1733852094333,6e-05,94916.0,94915.0,0.42559786]
[1733852094740,6e-05,94916.0,94915.0,0.47169208]
[1733852095330,6e-05,94916.0,94915.0,0.42559786]
[1733852096027,6e-05,94916.0,94915.0,0.47168523]
[1733852096229,0.00106,94916.0,94915.0,0.47168523]
[1733852096428,0.00106,94916.0,94915.0,0.47268523]
[1733852096637,0.00106,94916.0,94915.0,0.42659786]
[1733852097130,0.00106,94916.0,94915.0,0.47268263]
[1733852097536,6e-05,94931.0,94915.0,0.47268263]
[1733852097832,6e-05,94931.0,94930.0,0.413452]
[1733852098033,6e-05,94931.0,94930.0,0.3608]
[1733852098236,6e-05,94931.0,94930.0,0.413452]
[1733852098736,6e-05,94931.0,94930.0,0.052652]
[1733852099135,6e-05,94931.0,94923.0,0.3608]
[1733852099439,6e-05,94931.0,94923.0,0.413455]
[1733852099440,6e-05,94924.0,94923.0,0.413455]
[1733852099629,6e-05,94924.0,94923.0,0.3608]
[1733852099824,0.052715,94924.0,94923.0,0.3608]
[1733852100025,0.052715,94924.0,94922.0,0.01186825]
[1733852100230,0.052715,94924.0,94920.0,0.052657]
[1733852100427,0.052715,94924.0,94915.0,0.004]
[1733852100428,6e-05,94923.0,94921.0,0.052656]
[1733852100634,6e-05,94921.0,94916.0,0.052659]
[1733852100835,6e-05,94921.0,94915.0,0.3608]
[1733852100836,6e-05,94921.0,94915.0,0.37294423]
[1733852101039,6e-05,94917.0,94916.0,0.052659]
[1733852101229,0.6316424,94930.0,94915.0,0.37294423]
[1733852101230,0.3608,94930.0,94920.0,0.052657]
[1733852101430,0.3608,94930.0,94915.0,0.37294423]
[1733852101739,0.3608,94930.0,94929.0,0.00012]
[1733852101740,0.9972944,94930.0,94929.0,0.00012]
[1733852101940,1.026452,94930.0,94929.0,0.00012]
[1733852102136,1.026452,94930.0,94901.0,0.3608]
[1733852102137,0.6738,94930.0,94910.0,0.052662]
[1733852102438,0.12482706,94952.0,94940.0,0.052646]
[1733852102646,0.02119781,94953.0,94952.0,0.052639]
[1733852102647,6e-05,94953.0,94952.0,0.052639]
[1733852103735,6e-05,94953.0,94952.0,0.413439]
[1733852103943,6e-05,94953.0,94952.0,0.052639]
[1733852104134,0.052639,94952.0,94951.0,0.00012]
[1733852104550,6e-05,94952.0,94951.0,0.00012]
[1733852104734,6e-05,94952.0,94951.0,0.05276]
[1733852104935,0.052699,94952.0,94951.0,0.05276]
[1733852105133,6e-05,94952.0,94929.0,0.003]
[1733852105334,6e-05,94952.0,94921.0,0.36438016]
[1733852105335,0.3608,94948.0,94921.0,0.36438016]
[1733852105537,0.12488706,94953.0,94952.0,0.052639]
[1733852105538,6e-05,94953.0,94952.0,0.052639]
[1733852105936,0.052699,94953.0,94952.0,0.00012]
[1733852106136,6e-05,94953.0,94952.0,0.052759]
[1733852106445,0.052699,94953.0,94952.0,0.00012]
[1733852107342,0.05264,94951.0,94924.0,0.18837151]
[1733852107549,0.05264,94951.0,94921.0,0.00158016]
[1733852107550,0.45446594,94953.0,94928.0,0.3608]
[1733852107736,0.052643,94946.0,94944.0,0.052643]
[1733852107940,0.09360594,94951.0,94928.0,0.3608]
[1733852108142,0.052646,94940.0,94928.0,0.3608]
[1733852108354,0.36444834,94950.0,94928.0,0.3608]
[1733852108642,0.052647,94939.0,94928.0,0.3608]
[1733852108853,0.2708424,94950.0,94937.0,0.3608]
[1733852108854,0.052647,94938.0,94937.0,0.3608]
[1733852109144,0.052641,94950.0,94937.0,0.3608]
[1733852109340,0.001,94951.0,94950.0,0.05264]
[1733852110038,6e-05,94953.0,94952.0,0.052639]
[1733852110347,0.18713279,94986.0,94974.0,0.052627]
[1733852110348,0.09378262,94978.0,94974.0,0.052627]
[1733852110645,0.09378262,94978.0,94962.0,0.052633]
[1733852110646,0.09378262,94980.0,94979.0,0.052624]
[1733852110841,6.2e-07,94980.0,94979.0,0.413424]
[1733852111044,6.2e-07,94992.0,94991.0,0.052618]
[1733852111234,0.10059,95000.0,94999.0,0.052613]
[1733852111235,0.10069279,95000.0,94999.0,0.052613]
[1733852111433,0.10069279,95000.0,94999.0,0.413413]
[1733852111638,0.10069279,95000.0,94999.0,0.413533]
[1733852111838,0.10043644,95000.0,94999.0,0.413533]
[1733852112067,0.3273,95032.0,94999.0,0.413533]
[1733852112068,0.12482706,95030.0,94999.0,0.413533]
[1733852112254,0.3608,95049.0,95023.0,0.3608]
[1733852112255,0.12482706,95046.0,95023.0,0.3608]
[1733852112545,0.12482706,95046.0,95014.0,0.3608]
[1733852112546,0.052595,95033.0,95025.0,0.3608]
[1733852112743,0.02067329,95034.0,95031.0,0.052595]
[1733852112948,0.37303965,95040.0,95035.0,0.052593]
[1733852112949,0.3608,95040.0,95035.0,0.052593]
[1733852113137,8.442e-05,95039.0,95035.0,0.052593]
[1733852113344,8.442e-05,95039.0,95025.0,0.3608]
[1733852113746,6e-05,95026.0,95025.0,0.413399]
[1733852113950,6e-05,95026.0,95023.0,0.001]
[1733852114140,6e-05,95026.0,95025.0,0.3608]
[1733852114340,0.05267542,95039.0,95025.0,0.3608]
[1733852114341,8.442e-05,95039.0,95025.0,0.3608]
[1733852114542,8.442e-05,95039.0,95038.0,0.3608]
[1733852114739,8.442e-05,95039.0,95038.0,0.00012]
[1733852114949,0.05867542,95039.0,95038.0,0.00012]
[1733852115249,0.00608442,95039.0,95038.0,0.00012]
[1733852115754,0.00608442,95039.0,95038.0,0.052712]
[1733852116445,0.02408442,95039.0,95038.0,0.053712]
[1733852117150,0.01508442,95039.0,95038.0,0.06584522]
[1733852117342,0.00608442,95039.0,95038.0,0.01225322]
[1733852117977,0.00608442,95039.0,95038.0,0.00012]
[1733852119145,0.00908442,95039.0,95038.0,0.00112]
[1733852119345,0.00908442,95039.0,95038.0,0.00212]
[1733852119542,1.50908442,95039.0,95038.0,0.00212]
[1733852119756,0.00908442,95039.0,95038.0,0.00212]
[1733852119942,0.06167542,95039.0,95038.0,0.00212]
[1733852120148,0.00908442,95039.0,95038.0,0.00212]
[1733852120454,8.442e-05,95039.0,95038.0,0.00112]
[1733852120650,0.01108442,95039.0,95038.0,0.00112]
[1733852121849,0.00508442,95039.0,95038.0,0.00012]
[1733852122155,0.01108442,95039.0,95038.0,0.00112]
[1733852122746,0.01217107,95074.0,95057.0,0.052581]
[1733852123045,0.3608,95079.0,95073.0,0.00012]
[1733852123046,0.38217991,95079.0,95073.0,0.00012]
[1733852123240,0.3608,95080.0,95074.0,0.052572]
[1733852123445,0.3228,95089.0,95078.0,0.00012]
[1733852123446,0.052565,95086.0,95078.0,0.00012]
[1733852123650,9.525e-05,95085.0,95078.0,0.00012]
[1733852123955,9.525e-05,95085.0,95064.0,8.567e-05]
[1733852123956,0.3608,95081.0,95064.0,8.567e-05]
[1733852124148,0.3608,95065.0,95064.0,8.567e-05]
[1733852124554,0.413377,95065.0,95064.0,8.567e-05]
[1733852124755,0.052576,95066.0,95064.0,8.567e-05]
[1733852124952,0.2708424,95074.0,95064.0,8.567e-05]
[1733852124953,0.008,95074.0,95073.0,0.052572]
[1733852125144,0.008,95074.0,95073.0,0.413372]
[1733852125748,9.525e-05,95085.0,95075.0,0.052571]
[1733852125946,9.525e-05,95085.0,95077.0,0.05257]
[1733852126149,9.525e-05,95085.0,95084.0,0.00012]
[1733852127260,9.525e-05,95085.0,95065.0,0.00012]
[1733852127261,0.98239525,95085.0,95070.0,0.3608]
[1733852127552,0.98239525,95085.0,95065.0,0.00012]
[1733852127553,0.052633,95071.0,95065.0,0.00012]
[1733852127754,6e-05,95071.0,95065.0,0.413496]
[1733852127946,0.98239525,95085.0,95065.0,0.42559664]
[1733852127947,6e-05,95066.0,95065.0,0.42559664]
[1733852128554,9.525e-05,95085.0,95084.0,0.052566]
[1733852128748,9.525e-05,95085.0,95084.0,0.774166]
[1733852128947,0.00709525,95085.0,95084.0,0.775166]
[1733852129452,0.00709525,95085.0,95084.0,0.775286]
[1733852129762,0.00709525,95085.0,95084.0,0.414486]
[1733852130060,0.00709525,95085.0,95084.0,0.00112]
[1733852130252,9.525e-05,95085.0,95084.0,0.056686]
[1733852131468,0.00109525,95085.0,95084.0,0.065686]
[1733852132057,0.00109525,95085.0,95084.0,0.07780353]
[1733852132249,9.525e-05,95085.0,95084.0,0.06880353]
[1733852132449,0.00109525,95085.0,95084.0,0.07380353]
[1733852132655,0.00109525,95085.0,95084.0,0.07780353]
[1733852133657,0.00109525,95085.0,95084.0,0.07480353]
[1733852135155,9.525e-05,95085.0,95084.0,0.06580353]
[1733852135357,9.525e-05,95085.0,95084.0,0.01323753]
[1733852136157,9.525e-05,95085.0,95084.0,0.01223753]
[1733852136350,9.525e-05,95085.0,95084.0,0.00312]
[1733852136757,9.525e-05,95085.0,95069.0,0.052574]
[1733852137062,6e-05,95070.0,95069.0,0.01223729]
[1733852137361,6e-05,95070.0,95065.0,0.00012]
[1733852137564,0.052576,95066.0,95065.0,0.00012]
[1733852137762,6e-05,95066.0,95065.0,0.00012]
[1733852138269,6e-05,95066.0,95064.0,8.567e-05]
[1733852138270,0.052636,95066.0,95064.0,8.567e-05]
[1733852138459,6e-05,95066.0,95064.0,8.567e-05]
[1733852138761,6e-05,95065.0,95064.0,8.567e-05]
[1733852139661,6e-05,95065.0,95064.0,0.36088567]
[1733852141457,6e-05,95065.0,95064.0,8.567e-05]
[1733852142153,6e-05,95065.0,95064.0,0.00308567]
[1733852142350,6e-05,95065.0,95064.0,0.006]
[1733852142351,0.00106,95065.0,95064.0,0.006]
[1733852142554,0.053637,95065.0,95064.0,0.006]
[1733852143356,0.05258,95060.0,95048.0,0.01231123]
[1733852143558,0.05258,95059.0,95052.0,0.052584]
[1733852144363,0.052581,95058.0,95052.0,0.052584]
[1733852144570,0.001,95065.0,95045.0,0.052588]
[1733852144571,0.17535544,95062.0,95045.0,0.052588]
[1733852144863,0.052584,95052.0,95048.0,0.052586]
[1733852145053,0.001,95065.0,95047.0,0.3608]
[1733852145257,0.3608,95067.0,95047.0,0.3608]
[1733852145466,0.052582,95056.0,95047.0,0.3608]
[1733852145665,0.052582,95056.0,95054.0,0.052582]
[1733852146369,0.002,95065.0,95057.0,0.052581]
[1733852146665,0.006,95065.0,95063.0,0.052578]
[1733852147257,0.006,95065.0,95050.0,0.36379624]
[1733852147258,0.7216,95064.0,95054.0,0.001]
[1733852147556,0.413382,95055.0,95054.0,0.001]
[1733852147760,0.052586,95048.0,95043.0,0.00157795]
[1733852148068,0.052586,95048.0,95018.0,0.052602]
[1733852148069,0.052593,95036.0,95018.0,0.052602]
[1733852148264,0.413393,95036.0,95018.0,0.052602]
[1733852148470,0.413393,95036.0,95025.0,0.01168208]
[1733852148471,0.413453,95036.0,95025.0,0.01168208]
[1733852148965,0.413453,95036.0,95013.0,0.052605]
[1733852149157,0.052606,95012.0,95008.0,0.052608]
[1733852149465,0.052597,95029.0,94985.0,0.3608]
[1733852149466,6e-05,95009.0,95004.0,0.01170335]
[1733852149668,0.05261,95005.0,94985.0,0.3608]
[1733852149874,0.3608,94999.0,94998.0,0.05419292]
[1733852150068,0.36086,94999.0,94998.0,0.05419292]
[1733852150869,0.36086,94999.0,94998.0,0.06600143]
[1733852152460,0.413473,94999.0,94998.0,0.06600143]
[1733852152668,0.414473,94999.0,94998.0,0.01438743]
[1733852152968,0.41458053,94999.0,94998.0,0.01438743]
[1733852153159,0.41458053,94999.0,94998.0,0.06700143]
[1733852153370,0.36296753,94999.0,94998.0,0.07200143]
[1733852153561,0.00216753,94999.0,94998.0,0.07200143]
[1733852154263,0.3608,95018.0,94998.0,0.07200143]
[1733852154457,0.3608,95018.0,95004.0,0.3608]
[1733852154655,0.052592,95037.0,95017.0,0.00012]
[1733852154856,0.3608,95039.0,95017.0,0.00012]
[1733852154857,0.3608,95039.0,95030.0,0.052596]
[1733852155062,0.052592,95038.0,95036.0,0.00012]
[1733852155257,0.052592,95038.0,95013.0,0.3608]
[1733852155258,0.00010999,95037.0,95014.0,0.052605]
[1733852155471,0.052594,95034.0,95027.0,0.052597]
[1733852155668,0.3608,95028.0,95013.0,0.3608]
[1733852155867,0.001,95018.0,95016.0,0.052603]
[1733852156072,0.001,95018.0,95014.0,0.3608]
[1733852156372,0.001,95018.0,95017.0,0.3608]
[1733852156572,0.00010999,95037.0,95017.0,0.3608]
[1733852156764,0.052596,95031.0,95017.0,0.3608]
[1733852156965,0.052596,95031.0,95028.0,0.052597]
[1733852157164,0.00010999,95037.0,95025.0,0.3608]
[1733852157474,0.00010999,95037.0,95036.0,0.00012]
[1733852158960,0.052597,95028.0,95027.0,0.01192233]
[1733852159162,0.052597,95028.0,95020.0,0.052601]
[1733852159163,0.052601,95021.0,95020.0,0.052601]
[1733852159682,0.052601,95021.0,95018.0,0.052602]
[1733852159683,0.052602,95019.0,95018.0,0.052602]
[1733852159860,0.36086,95028.0,95011.0,0.3608]
[1733852160066,0.052605,95014.0,95012.0,0.052606]
[1733852160570,6e-05,95019.0,94999.0,0.01199267]
[1733852160765,6e-05,95019.0,95010.0,0.052607]
[1733852160766,0.3608,95011.0,95010.0,0.052607]
[1733852162070,0.052609,95007.0,95005.0,0.05261]
[1733852162271,0.3608,95011.0,95005.0,0.05261]
[1733852162569,0.3608,95011.0,94999.0,0.006]
[1733852162973,6e-05,95000.0,94999.0,0.006]
[1733852163972,6e-05,95000.0,94960.0,0.18743827]
[1733852163973,0.052617,94993.0,94992.0,6.6e-07]
[1733852164273,0.052617,94993.0,94964.0,0.01159674]
[1733852164274,0.052632,94965.0,94964.0,0.01159674]
[1733852164476,0.413432,94965.0,94964.0,0.01159674]
[1733852164675,0.052639,94952.0,94951.0,0.00157976]
[1733852164865,0.052639,94952.0,94915.0,0.3323]
[1733852164866,0.052654,94925.0,94923.0,0.052655]
[1733852165069,0.00010406,94924.0,94916.0,9.807e-05]
[1733852165279,0.413459,94917.0,94916.0,9.807e-05]
[1733852165477,0.413519,94917.0,94916.0,9.807e-05]
[1733852166173,0.413519,94917.0,94916.0,0.00309807]
[1733852166579,0.052665,94905.0,94904.0,0.00158042]
[1733852166777,0.413465,94905.0,94904.0,0.00158042]
[1733852167084,0.052673,94892.0,94891.0,0.0117752]
[1733852167374,0.052673,94892.0,94865.0,0.3608]
[1733852167375,0.36086,94892.0,94865.0,0.3608]
[1733852167573,0.3608,94880.0,94861.0,0.01160718]
[1733852167764,0.3608,94852.0,94808.0,0.01]
[1733852167968,0.01,94800.0,94762.0,0.24928945]
[1733852168173,0.01,94800.0,94695.0,0.36344611]
[1733852168174,0.052748,94757.0,94735.0,0.05276]
[1733852168383,0.052748,94757.0,94717.0,0.00104]
[1733852168384,0.27064884,94745.0,94734.0,0.3608]
[1733852168578,0.27064884,94745.0,94726.0,0.052765]
[1733852168579,6e-05,94736.0,94735.0,0.00527788]
[1733852168772,0.3608,94762.0,94726.0,0.3608]
[1733852169092,0.02104469,94776.0,94761.0,0.3608]
[1733852169270,0.052751,94752.0,94743.0,0.3458]
[1733852169469,0.01201889,94790.0,94751.0,0.3608]
[1733852169772,0.05282332,94789.0,94777.0,0.3608]
[1733852169967,0.052736,94778.0,94775.0,0.00012]
[1733852171472,0.052744,94764.0,94746.0,0.052754]
[1733852171779,0.3608,94758.0,94750.0,0.3608]
[1733852172167,0.3608,94758.0,94739.0,0.37244268]
[1733852172168,0.3608,94758.0,94741.0,0.052756]
[1733852172473,0.413547,94758.0,94739.0,0.37244268]
[1733852172674,0.413547,94758.0,94741.0,0.3608]
[1733852172879,0.3608,94743.0,94736.0,0.05287924]
[1733852173177,0.3608,94758.0,94739.0,0.3608]
[1733852173375,0.3608,94741.0,94736.0,0.01198533]
[1733852173771,0.3608,94741.0,94724.0,0.052766]
[1733852173772,6e-05,94737.0,94724.0,0.052766]
[1733852173971,6e-05,94737.0,94713.0,0.36238372]
[1733852173972,0.3608,94732.0,94713.0,0.36238372]
[1733852174170,6e-05,94725.0,94724.0,0.052766]
[1733852174375,0.00011142,94740.0,94738.0,0.052758]
[1733852174677,0.00011142,94740.0,94739.0,0.3608]
[1733852174875,0.00011142,94740.0,94713.0,0.01347853]
[1733852174876,0.00011142,94740.0,94735.0,8.624e-05]
[1733852175181,0.3608,94737.0,94735.0,8.624e-05]
[1733852175375,0.3608,94737.0,94735.0,0.01204862]
[1733852175687,0.00011142,94740.0,94735.0,8.624e-05]
[1733852175876,0.052759,94737.0,94735.0,8.624e-05]
[1733852176475,0.00011142,94740.0,94735.0,8.624e-05]
[1733852176676,0.00011142,94740.0,94739.0,0.3608]
[1733852176879,0.00011142,94740.0,94735.0,8.624e-05]
[1733852176880,0.36084142,94740.0,94735.0,8.624e-05]
[1733852177279,6e-05,94736.0,94735.0,0.01221812]
[1733852177674,6e-05,94736.0,94735.0,0.06497812]
[1733852177985,0.001,94758.0,94739.0,0.052758]
[1733852178282,0.001,94758.0,94757.0,0.36092]
[1733852178490,0.3608,94787.0,94765.0,0.27064884]
[1733852178676,0.3608,94787.0,94778.0,0.3608]
[1733852178874,0.3608,94787.0,94769.0,0.3608]
[1733852178875,0.413531,94787.0,94786.0,0.00012]
[1733852179072,0.41366632,94787.0,94786.0,0.00012]
[1733852179486,0.052738,94775.0,94758.0,0.3608]
[1733852179686,0.052738,94775.0,94758.0,0.37271615]
[1733852179873,6e-05,94759.0,94758.0,0.37271615]
[1733852180188,0.36093532,94787.0,94758.0,0.67271615]
[1733852180377,0.36093532,94787.0,94785.0,0.052732]
[1733852180683,0.36093532,94787.0,94786.0,0.00012]
[1733852181180,0.00013532,94787.0,94786.0,0.00012]
[1733852181383,0.052734,94781.0,94750.0,0.3608]
[1733852181583,0.00013532,94787.0,94770.0,0.27064884]
[1733852181782,0.00013532,94787.0,94782.0,0.052734]
[1733852181989,0.00013532,94787.0,94786.0,0.00012]
[1733852182283,0.00013532,94787.0,94786.0,0.052851]
[1733852182884,0.00013532,94787.0,94786.0,0.00012]
[1733852183089,0.05286632,94787.0,94786.0,0.00012]
[1733852183481,0.00013532,94787.0,94786.0,0.01176835]
[1733852183674,0.00013532,94787.0,94772.0,0.20373582]
[1733852183875,0.3608,94775.0,94759.0,0.3608]
[1733852184078,0.3608,94775.0,94769.0,0.05274]
[1733852184280,0.3608,94775.0,94759.0,0.37247442]
[1733852184488,0.00013532,94787.0,94779.0,0.052735]
[1733852184688,0.00013532,94787.0,94785.0,0.052732]
[1733852184883,0.00013532,94787.0,94786.0,0.00012]
[1733852185086,0.00713532,94787.0,94786.0,0.00012]
[1733852185986,0.05986632,94787.0,94774.0,0.3608]
[1733852186189,0.052737,94777.0,94763.0,0.052744]
[1733852186380,0.04403532,94787.0,94759.0,0.3608]
[1733852186381,0.04403532,94787.0,94773.0,0.3608]
[1733852186579,0.04403532,94787.0,94781.0,0.3608]
[1733852186776,0.04403532,94787.0,94777.0,0.052736]
[1733852186987,0.052734,94781.0,94767.0,0.052742]
[1733852187180,0.052734,94781.0,94770.0,0.3608]
[1733852187782,0.04403532,94787.0,94785.0,0.052732]
[1733852187992,0.04403532,94787.0,94786.0,0.3608]
[1733852188486,0.03703532,94787.0,94786.0,0.3608]
[1733852188692,0.03703532,94787.0,94786.0,0.17092568]
[1733852189491,0.3608,94801.0,94786.0,0.17092568]
[1733852189492,0.3608,94801.0,94786.0,0.47092568]
[1733852189795,0.3608,94821.0,94800.0,0.3608]
[1733852189983,0.3608,94828.0,94826.0,0.052709]
[1733852190179,0.3608,94828.0,94816.0,0.3608]
[1733852190484,0.3608,94828.0,94817.0,0.00011158]
[1733852190783,0.00013003,94827.0,94817.0,0.00011158]
[1733852190984,0.00013003,94827.0,94825.0,0.05271]
[1733852193087,0.3608,94826.0,94817.0,0.0120949]
[1733852193494,0.3608,94826.0,94824.0,0.05271]
[1733852194387,0.3608,94826.0,94817.0,0.0120949]
[1733852194388,0.6608,94826.0,94817.0,0.00011158]
[1733852194608,0.6608,94826.0,94782.0,0.3608]
[1733852194609,0.3608,94818.0,94782.0,0.3608]
[1733852194888,6e-05,94798.0,94786.0,0.02132463]
[1733852195088,6e-05,94798.0,94797.0,0.06633205]
[1733852195289,6e-05,94798.0,94797.0,0.05430735]
[1733852195491,6e-05,94798.0,94797.0,0.05439682]
[1733852195897,0.3608,94824.0,94799.0,0.052724]
[1733852196094,0.3608,94824.0,94808.0,0.3608]
[1733852196292,0.3608,94824.0,94823.0,0.052771]
[1733852197591,0.3704948,94824.0,94823.0,0.052771]
[1733852197897,0.7840048,94824.0,94823.0,6e-05]
[1733852198400,0.7840048,94824.0,94797.0,0.00167182]
[1733852198401,0.052725,94798.0,94797.0,0.00167182]
[1733852198598,0.3704948,94798.0,94797.0,0.00167182]
[1733852198903,0.3704948,94798.0,94796.0,0.06280173]
[1733852199100,0.0096948,94797.0,94796.0,0.06280173]
[1733852200001,0.0096948,94797.0,94790.0,9.577e-05]
[1733852200002,0.052727,94795.0,94790.0,0.05282477]
[1733852200202,0.052729,94792.0,94790.0,9.577e-05]
[1733852200398,0.00982237,94791.0,94790.0,9.577e-05]
[1733852200996,0.30992651,94791.0,94756.0,0.02113117]
[1733852201304,6e-05,94761.0,94760.0,0.05432867]
[1733852201600,0.00982237,94761.0,94760.0,0.05432867]
[1733852202111,0.00982237,94761.0,94760.0,0.00158267]
[1733852203101,0.00982237,94761.0,94746.0,9.933e-05]
[1733852203102,0.052753,94747.0,94746.0,9.933e-05]
[1733852203293,0.052753,94747.0,94705.0,0.02114804]
[1733852203294,0.37056237,94747.0,94705.0,0.02114804]
[1733852203494,0.3608,94723.0,94705.0,0.02114804]
[1733852203698,0.3608,94723.0,94722.0,0.052767]
[1733852203893,0.00976361,94723.0,94722.0,0.052767]
[1733852204096,0.3608,94728.0,94712.0,0.3608]
[1733852204297,0.00976671,94727.0,94724.0,0.3608]
[1733852204500,0.052759,94738.0,94734.0,0.05276]
[1733852204693,0.00968717,94737.0,94722.0,0.00013708]
[1733852204895,0.3608,94730.0,94729.0,0.052763]
[1733852205092,0.37048717,94730.0,94729.0,0.052763]
[1733852205501,0.38494042,94730.0,94729.0,0.052763]
[1733852205699,0.3608,94755.0,94753.0,0.05275]
[1733852205902,0.01580907,94754.0,94753.0,0.05275]
[1733852206305,8.917e-05,94760.0,94751.0,0.3608]
[1733852206604,8.917e-05,94760.0,94759.0,0.052747]
[1733852206802,8.917e-05,94760.0,94741.0,0.3608]
[1733852206803,0.0158483,94760.0,94741.0,0.3608]
[1733852206998,0.3608,94755.0,94751.0,0.052751]
[1733852207208,0.01575913,94754.0,94751.0,0.052751]
[1733852207393,0.3608,94755.0,94741.0,0.01204935]
[1733852207394,0.06850913,94753.0,94741.0,0.01204935]
[1733852207708,0.01575913,94752.0,94750.0,0.052751]
[1733852207910,0.01575913,94752.0,94722.0,0.00113708]
[1733852207911,0.052753,94748.0,94743.0,0.052755]
[1733852208097,0.052754,94746.0,94738.0,0.052758]
[1733852208303,0.3608,94747.0,94746.0,0.052754]
[1733852208506,0.37657679,94747.0,94746.0,0.052754]
[1733852208703,0.37657679,94747.0,94734.0,0.00158334]
[1733852208896,0.3608,94737.0,94734.0,0.00158334]
[1733852209206,0.01577679,94736.0,94734.0,0.00158334]
[1733852209399,0.052766,94724.0,94722.0,0.00013708]
[1733852209597,0.052766,94724.0,94722.0,0.01165573]
[1733852209598,0.37671064,94723.0,94722.0,0.01165573]
[1733852209799,0.052768,94721.0,94718.0,0.052769]
[1733852210003,0.36099385,94723.0,94721.0,0.052767]
[1733852210198,0.00013385,94723.0,94721.0,0.052767]
[1733852210400,0.00013385,94723.0,94722.0,0.00012]
[1733852210802,0.05290085,94723.0,94722.0,0.00012]
[1733852211003,0.06868342,94723.0,94722.0,0.00012]
[1733852211396,0.05290085,94723.0,94722.0,0.00012]
[1733852211596,0.00013385,94723.0,94722.0,0.052887]
[1733852212405,0.00013385,94723.0,94722.0,0.06225008]
[1733852213303,0.00313385,94723.0,94722.0,0.06225008]
[1733852216222,0.36393385,94723.0,94722.0,0.00948308]
[1733852216410,0.37989076,94723.0,94722.0,0.00948308]
[1733852216798,0.37989076,94723.0,94713.0,0.00013419]
[1733852216799,0.36393385,94723.0,94713.0,0.00013419]
[1733852217003,0.3608,94714.0,94713.0,0.00948333]
[1733852217207,0.3608,94714.0,94713.0,0.00013419]
[1733852217704,0.37075548,94714.0,94713.0,0.00013419]
[1733852218610,0.38662421,94714.0,94713.0,0.00982156]
[1733852218815,0.38662421,94714.0,94700.0,0.1]
[1733852219006,0.3608,94714.0,94712.0,0.052772]
[1733852220619,0.00213385,94723.0,94722.0,0.052767]
[1733852220917,0.01007185,94723.0,94722.0,0.052887]
[1733852221123,0.01011108,94723.0,94722.0,0.052887]
[1733852221515,0.00013385,94723.0,94722.0,0.052887]
[1733852221711,0.01011826,94723.0,94722.0,0.052887]
[1733852221914,0.01011826,94723.0,94722.0,0.00012]
[1733852222113,0.43965221,94723.0,94722.0,0.00979221]
[1733852222314,0.07885221,94723.0,94722.0,0.00012]
[1733852222517,0.02608521,94723.0,94722.0,0.00012]
[1733852222917,0.07885221,94723.0,94722.0,0.00012]
[1733852223120,0.43965221,94723.0,94722.0,0.00012]
[1733852223620,0.07885221,94723.0,94722.0,0.00012]
[1733852223829,0.02608521,94723.0,94722.0,0.06213163]
[1733852224126,0.01011826,94723.0,94722.0,0.052887]
[1733852224735,0.01011826,94723.0,94722.0,0.00012]
[1733852224921,0.08090045,94723.0,94722.0,0.00965584]
[1733852225123,0.08090045,94723.0,94722.0,0.00012]
[1733852225338,0.02818055,94723.0,94722.0,0.052887]
[1733852225628,0.01215181,94723.0,94722.0,0.052887]
[1733852225833,0.01115181,94723.0,94722.0,0.052887]
[1733852226222,0.01113783,94723.0,94722.0,0.052887]
[1733852226827,0.00213385,94723.0,94722.0,0.052887]
[1733852227923,0.06491481,94723.0,94722.0,0.00012]
[1733852228133,0.01214781,94723.0,94722.0,0.00981417]
[1733852228334,0.08103974,94723.0,94722.0,0.00012]
[1733852228721,0.02727274,94723.0,94713.0,0.052772]
[1733852228927,0.3608,94714.0,94713.0,0.052772]
[1733852229124,0.38693889,94714.0,94713.0,0.052772]
[1733852229523,0.43971089,94714.0,94713.0,0.052772]
[1733852229725,0.43971089,94714.0,94707.0,0.00964393]
[1733852229726,0.052775,94708.0,94707.0,0.00964393]